[Event "Titled Tuesday Blitz August 09 Early 2022"]
[White "Pourkashiyan, Atousa"]
[Black "Gombocz, Ferenc Jr."]
[WhiteFideId "12502014"]
[BlackFideId "775029"]
[WhiteElo "2247"]
[BlackElo "1913"]
[Result "1/2-1/2"]
[Round "05"]
[TimeControl "180+1"]
[Date "2022.08.09"]
[WhiteClock "0:00:12"]
[BlackClock "0:00:22"]

1. e4 {[%clk 0:03:00]}  e5 {[%clk 0:02:59]} 2. Nf3 {[%clk 0:03:00]}  Nc6 {[%clk 0:02:59]} 3. Bb5 {[%clk 0:03:01]}  g6 {[%clk 0:02:57]} 4. O-O {[%clk 0:03:01]}  Bg7 {[%clk 0:02:57]} 5. c3 {[%clk 0:02:59]}  a6 {[%clk 0:02:57]} 6. Ba4 {[%clk 0:02:58]}  d6 {[%clk 0:02:57]} 7. d4 {[%clk 0:02:58]}  Bd7 {[%clk 0:02:57]} 8. d5 {[%clk 0:02:54]}  Nce7 {[%clk 0:02:57]} 9. Bxd7+ {[%clk 0:02:55]}  Qxd7 {[%clk 0:02:56]} 10. c4 {[%clk 0:02:56]}  h6 {[%clk 0:02:55]} 11. Nc3 {[%clk 0:02:56]}  f5 {[%clk 0:02:56]} 12. exf5 {[%clk 0:02:51]}  gxf5 {[%clk 0:02:55]} 13. Nh4 {[%clk 0:02:51]}  Nf6 {[%clk 0:02:55]} 14. f4 {[%clk 0:02:39]}  e4 {[%clk 0:02:53]} 15. Be3 {[%clk 0:02:20]}  O-O {[%clk 0:02:50]} 16. Ne2 {[%clk 0:02:06]}  c6 {[%clk 0:02:40]} 17. dxc6 {[%clk 0:01:57]}  bxc6 {[%clk 0:02:40]} 18. Bd4 {[%clk 0:01:45]}  c5 {[%clk 0:02:30]} 19. Bc3 {[%clk 0:01:45]}  d5 {[%clk 0:02:23]} 20. cxd5 {[%clk 0:01:42]}  Nexd5 {[%clk 0:02:19]} 21. Ng3 {[%clk 0:01:42]}  Nxc3 {[%clk 0:02:16]} 22. bxc3 {[%clk 0:01:41]}  Qxd1 {[%clk 0:02:13]} 23. Raxd1 {[%clk 0:01:41]}  Ng4 {[%clk 0:02:13]} 24. Nhxf5 {[%clk 0:01:33]}  Bxc3 {[%clk 0:02:10]} 25. h3 {[%clk 0:01:33]}  Nf6 {[%clk 0:02:07]} 26. Nxh6+ {[%clk 0:01:26]}  Kh7 {[%clk 0:02:05]} 27. Nhf5 {[%clk 0:01:26]}  Rad8 {[%clk 0:02:04]} 28. Nd6 {[%clk 0:01:06]}  Bd4+ {[%clk 0:01:59]} 29. Rxd4 {[%clk 0:01:05]}  cxd4 {[%clk 0:01:59]} 30. Ngxe4 {[%clk 0:01:05]}  Nxe4 {[%clk 0:01:58]} 31. Nxe4 {[%clk 0:01:06]}  Kg6 {[%clk 0:01:51]} 32. g4 {[%clk 0:01:05]}  d3 {[%clk 0:01:49]} 33. f5+ {[%clk 0:01:04]}  Kg7 {[%clk 0:01:49]} 34. Ng5 {[%clk 0:00:50]}  d2 {[%clk 0:01:32]} 35. Ne6+ {[%clk 0:00:50]}  Kf6 {[%clk 0:01:32]} 36. Nxd8 {[%clk 0:00:51]}  Rxd8 {[%clk 0:01:32]} 37. Rd1 {[%clk 0:00:52]}  Kg5 {[%clk 0:01:32]} 38. Kf2 {[%clk 0:00:51]}  Rd3 {[%clk 0:01:32]} 39. Ke2 {[%clk 0:00:47]}  Rxh3 {[%clk 0:01:31]} 40. Rxd2 {[%clk 0:00:26]}  Kxg4 {[%clk 0:01:30]} 41. f6 {[%clk 0:00:23]}  Rh7 {[%clk 0:01:25]} 42. Rd6 {[%clk 0:00:20]}  a5 {[%clk 0:01:23]} 43. Kd3 {[%clk 0:00:19]}  Kf5 {[%clk 0:01:20]} 44. Kc4 {[%clk 0:00:14]}  Rh4+ {[%clk 0:01:15]} 45. Kb5 {[%clk 0:00:07]}  a4 {[%clk 0:01:08]} 46. a3 {[%clk 0:00:07]}  Kg6 {[%clk 0:01:07]} 47. Ra6 {[%clk 0:00:07]}  Kf7 {[%clk 0:01:04]} 48. Ka5 {[%clk 0:00:07]}  Rf4 {[%clk 0:01:01]} 49. Rb6 {[%clk 0:00:07]}  Re4 {[%clk 0:01:00]} 50. Rb4 {[%clk 0:00:06]}  Re5+ {[%clk 0:01:00]} 51. Kb6 {[%clk 0:00:04]}  Kxf6 {[%clk 0:00:59]} 52. Rxa4 {[%clk 0:00:04]}  Re3 {[%clk 0:00:55]} 53. Ra8 {[%clk 0:00:04]}  Ke7 {[%clk 0:00:54]} 54. a4 {[%clk 0:00:03]}  Kd7 {[%clk 0:00:54]} 55. a5 {[%clk 0:00:03]}  Rb3+ {[%clk 0:00:54]} 56. Ka7 {[%clk 0:00:02]}  Kc7 {[%clk 0:00:54]} 57. Rh8 {[%clk 0:00:02]}  Rb7+ {[%clk 0:00:53]} 58. Ka8 {[%clk 0:00:02]}  Rb2 {[%clk 0:00:49]} 59. a6 {[%clk 0:00:01]}  Ra2 {[%clk 0:00:45]} 60. Ka7 {[%clk 0:00:02]}  Ra3 {[%clk 0:00:44]} 61. Rh1 {[%clk 0:00:02]}  Rc3 {[%clk 0:00:43]} 62. Rb1 {[%clk 0:00:03]}  Rc4 {[%clk 0:00:43]} 63. Rb3 {[%clk 0:00:03]}  Rc2 {[%clk 0:00:42]} 64. Rb7+ {[%clk 0:00:03]}  Kc8 {[%clk 0:00:42]} 65. Rb4 {[%clk 0:00:04]}  Rc1 {[%clk 0:00:38]} 66. Ka8 {[%clk 0:00:04]}  Rc6 {[%clk 0:00:35]} 67. a7 {[%clk 0:00:04]}  Rc1 {[%clk 0:00:34]} 68. Rb8+ {[%clk 0:00:04]}  Kc7 {[%clk 0:00:34]} 69. Rh8 {[%clk 0:00:04]}  Rb1 {[%clk 0:00:29]} 70. Rh7+ {[%clk 0:00:05]}  Kc8 {[%clk 0:00:29]} 71. Rh8+ {[%clk 0:00:05]}  Kc7 {[%clk 0:00:29]} 72. Rb8 {[%clk 0:00:06]}  Ra1 {[%clk 0:00:26]} 73. Rb3 {[%clk 0:00:06]}  Rc1 {[%clk 0:00:26]} 74. Rb4 {[%clk 0:00:07]}  Rc2 {[%clk 0:00:26]} 75. Rb5 {[%clk 0:00:07]}  Rc1 {[%clk 0:00:26]} 76. Rb2 {[%clk 0:00:07]}  Rc3 {[%clk 0:00:25]} 77. Rh2 {[%clk 0:00:07]}  Rc1 {[%clk 0:00:22]} 78. Rh7+ {[%clk 0:00:08]}  Kc8 {[%clk 0:00:22]} 79. Rh8+ {[%clk 0:00:08]}  Kc7 {[%clk 0:00:22]} 80. Rb8 {[%clk 0:00:08]}  Rc2 {[%clk 0:00:21]} 81. Rb7+ {[%clk 0:00:08]}  Kc8 {[%clk 0:00:21]} 82. Rb6 {[%clk 0:00:08]}  Rc1 {[%clk 0:00:21]} 83. Ra6 {[%clk 0:00:08]}  Rc2 {[%clk 0:00:20]} 84. Ra4 {[%clk 0:00:09]}  Rc1 {[%clk 0:00:20]} 85. Rb4 {[%clk 0:00:09]}  Rc2 {[%clk 0:00:21]} 86. Rb1 {[%clk 0:00:10]}  Rc3 {[%clk 0:00:21]} 87. Rh1 {[%clk 0:00:10]}  Rc2 {[%clk 0:00:21]} 88. Rh7 {[%clk 0:00:11]}  Rc1 {[%clk 0:00:21]} 89. Rh8+ {[%clk 0:00:12]}  Kc7 {[%clk 0:00:21]} 90. Rh7+ {[%clk 0:00:12]}  Kc8 {[%clk 0:00:22]} 1/2-1/2


[Site "https://www.chess.com"]

[Event "Titled Tuesday Blitz August 09 Early 2022"]
[White "Rustemov, Alexander"]
[Black "Aggelis, Nikolaos"]
[WhiteFideId "4119002"]
[BlackFideId "4213220"]
[WhiteElo "2777"]
[BlackElo "2154"]
[Result "1-0"]
[Round "05"]
[TimeControl "180+1"]
[Date "2022.08.09"]
[WhiteClock "0:00:09"]
[BlackClock "0:00:03"]

1. d4 {[%clk 0:03:00]}  Nf6 {[%clk 0:02:59]} 2. c4 {[%clk 0:03:01]}  g6 {[%clk 0:02:59]} 3. Nf3 {[%clk 0:03:01]}  Bg7 {[%clk 0:02:59]} 4. g3 {[%clk 0:03:02]}  O-O {[%clk 0:02:59]} 5. Bg2 {[%clk 0:03:02]}  d5 {[%clk 0:03:00]} 6. cxd5 {[%clk 0:03:02]}  Nxd5 {[%clk 0:02:59]} 7. O-O {[%clk 0:03:02]}  Nc6 {[%clk 0:02:59]} 8. Nc3 {[%clk 0:03:02]}  e5 {[%clk 0:02:56]} 9. Bg5 {[%clk 0:03:00]}  f6 {[%clk 0:02:55]} 10. Bc1 {[%clk 0:02:59]}  Nxc3 {[%clk 0:02:55]} 11. bxc3 {[%clk 0:02:59]}  e4 {[%clk 0:02:54]} 12. Nd2 {[%clk 0:02:59]}  f5 {[%clk 0:02:55]} 13. Rb1 {[%clk 0:02:58]}  b6 {[%clk 0:02:53]} 14. f3 {[%clk 0:02:51]}  exf3 {[%clk 0:02:51]} 15. Bxf3 {[%clk 0:02:48]}  Bb7 {[%clk 0:02:48]} 16. Nc4 {[%clk 0:02:46]}  Kh8 {[%clk 0:02:42]} 17. Bf4 {[%clk 0:02:36]}  Re8 {[%clk 0:02:32]} 18. Qd3 {[%clk 0:02:35]}  Rb8 {[%clk 0:02:28]} 19. Rfe1 {[%clk 0:02:02]}  h6 {[%clk 0:02:09]} 20. h4 {[%clk 0:01:49]}  Qd7 {[%clk 0:01:34]} 21. Kh2 {[%clk 0:01:31]}  Ba6 {[%clk 0:01:11]} 22. Ne5 {[%clk 0:01:25]}  Nxe5 {[%clk 0:01:08]} 23. Qxa6 {[%clk 0:01:25]}  Nxf3+ {[%clk 0:01:08]} 24. exf3 {[%clk 0:01:25]}  Qc6 {[%clk 0:00:46]} 25. Qd3 {[%clk 0:01:22]}  b5 {[%clk 0:00:35]} 26. d5 {[%clk 0:01:20]}  Qd7 {[%clk 0:00:18]} 27. Rxe8+ {[%clk 0:01:14]}  Rxe8 {[%clk 0:00:14]} 28. Rxb5 {[%clk 0:01:13]}  Qe7 {[%clk 0:00:07]} 29. Rb2 {[%clk 0:01:03]}  Qc5 {[%clk 0:00:05]} 30. Rc2 {[%clk 0:00:58]}  Re1 {[%clk 0:00:06]} 31. Rg2 {[%clk 0:00:47]}  Qxc3 {[%clk 0:00:05]} 32. Qxc3 {[%clk 0:00:46]}  Bxc3 {[%clk 0:00:06]} 33. Rc2 {[%clk 0:00:44]}  Ba5 {[%clk 0:00:06]} 34. Bxh6 {[%clk 0:00:37]}  Rd1 {[%clk 0:00:05]} 35. Bf4 {[%clk 0:00:12]}  Rxd5 {[%clk 0:00:04]} 36. g4 {[%clk 0:00:12]}  fxg4 {[%clk 0:00:04]} 37. fxg4 {[%clk 0:00:12]}  Kh7 {[%clk 0:00:04]} 38. Bxc7 {[%clk 0:00:12]}  Bxc7+ {[%clk 0:00:04]} 39. Rxc7+ {[%clk 0:00:12]}  Kh6 {[%clk 0:00:05]} 40. Rxa7 {[%clk 0:00:10]}  g5 {[%clk 0:00:03]} 41. Ra6+ {[%clk 0:00:09]}  Kg7 {[%clk 0:00:03]} 42. hxg5 {[%clk 0:00:10]}  Rxg5 {[%clk 0:00:03]} 43. Kg3 {[%clk 0:00:11]}  Rc5 {[%clk 0:00:04]} 44. a4 {[%clk 0:00:11]}  Rc4 {[%clk 0:00:04]} 45. Kh4 {[%clk 0:00:11]}  Rc5 {[%clk 0:00:04]} 46. a5 {[%clk 0:00:11]}  Rb5 {[%clk 0:00:04]} 47. Ra8 {[%clk 0:00:10]}  Rc5 {[%clk 0:00:04]} 48. a6 {[%clk 0:00:10]}  Rb5 {[%clk 0:00:04]} 49. g5 {[%clk 0:00:11]}  Ra5 {[%clk 0:00:04]} 50. Kh5 {[%clk 0:00:11]}  Ra4 {[%clk 0:00:04]} 51. Ra7+ {[%clk 0:00:12]}  Kf8 {[%clk 0:00:02]} 52. Kg6 {[%clk 0:00:12]}  Rb4 {[%clk 0:00:02]} 53. Ra8+ {[%clk 0:00:12]}  Ke7 {[%clk 0:00:03]} 54. a7 {[%clk 0:00:12]}  Rb6+ {[%clk 0:00:03]} 55. Kg7 {[%clk 0:00:11]}  Ra6 {[%clk 0:00:04]} 56. Rf8 {[%clk 0:00:10]}  Ke6 {[%clk 0:00:03]} 57. a8=Q {[%clk 0:00:09]} 1-0


[Site "https://www.chess.com"]

[Event "Titled Tuesday Blitz August 09 Early 2022"]
[White "Samarth, J Rao"]
[Black "Mouhamad, Joachim"]
[WhiteFideId "46652370"]
[BlackFideId "656410"]
[WhiteElo "1514"]
[BlackElo "2147"]
[Result "1-0"]
[Round "05"]
[TimeControl "180+1"]
[Date "2022.08.09"]
[WhiteClock "0:00:03"]
[BlackClock "0:00:01"]

1. d4 {[%clk 0:02:25]}  Nf6 {[%clk 0:02:47]} 2. c4 {[%clk 0:02:16]}  g6 {[%clk 0:02:32]} 3. Nc3 {[%clk 0:01:32]}  d5 {[%clk 0:02:31]} 4. cxd5 {[%clk 0:01:31]}  Nxd5 {[%clk 0:02:32]} 5. e4 {[%clk 0:01:32]}  Nxc3 {[%clk 0:02:29]} 6. bxc3 {[%clk 0:01:33]}  Bg7 {[%clk 0:02:29]} 7. Bc4 {[%clk 0:01:33]}  c5 {[%clk 0:02:25]} 8. Ne2 {[%clk 0:01:33]}  Nc6 {[%clk 0:02:13]} 9. Be3 {[%clk 0:01:32]}  O-O {[%clk 0:02:11]} 10. O-O {[%clk 0:01:32]}  Na5 {[%clk 0:02:11]} 11. Bd3 {[%clk 0:01:29]}  b6 {[%clk 0:02:12]} 12. f3 {[%clk 0:01:27]}  e5 {[%clk 0:02:09]} 13. dxc5 {[%clk 0:01:25]}  Qc7 {[%clk 0:02:07]} 14. cxb6 {[%clk 0:01:24]}  axb6 {[%clk 0:02:08]} 15. Qb1 {[%clk 0:01:19]}  Rb8 {[%clk 0:01:44]} 16. Qb4 {[%clk 0:01:13]}  Rd8 {[%clk 0:01:41]} 17. Rfd1 {[%clk 0:01:09]}  Bf8 {[%clk 0:01:40]} 18. Qa4 {[%clk 0:01:01]}  Bc5 {[%clk 0:01:39]} 19. Bxc5 {[%clk 0:00:58]}  Qxc5+ {[%clk 0:01:39]} 20. Kf1 {[%clk 0:00:58]}  Rxd3 {[%clk 0:01:16]} 21. Rxd3 {[%clk 0:00:56]}  Ba6 {[%clk 0:01:16]} 22. Rd5 {[%clk 0:00:54]}  Qe3 {[%clk 0:01:11]} 23. Qc2 {[%clk 0:00:51]}  Nc4 {[%clk 0:01:08]} 24. Qc1 {[%clk 0:00:46]}  Rc8 {[%clk 0:00:48]} 25. Ke1 {[%clk 0:00:22]}  Kg7 {[%clk 0:00:29]} 26. Qxe3 {[%clk 0:00:14]}  Nxe3 {[%clk 0:00:30]} 27. Rd2 {[%clk 0:00:12]}  Nxg2+ {[%clk 0:00:30]} 28. Kf2 {[%clk 0:00:12]}  Bxe2 {[%clk 0:00:20]} 29. Kxg2 {[%clk 0:00:01]}  Bc4 {[%clk 0:00:20]} 30. Rc1 {[%clk 0:00:01]}  Ra8 {[%clk 0:00:19]} 31. Kf2 {[%clk 0:00:01]}  Ra3 {[%clk 0:00:19]} 32. Rcc2 {[%clk 0:00:01]}  b5 {[%clk 0:00:18]} 33. Rd1 {[%clk 0:00:01]}  h5 {[%clk 0:00:16]} 34. Rdd2 {[%clk 0:00:01]}  Kf6 {[%clk 0:00:16]} 35. Rd1 {[%clk 0:00:02]}  Kg5 {[%clk 0:00:16]} 36. Rdd2 {[%clk 0:00:02]}  f6 {[%clk 0:00:17]} 37. Rd6 {[%clk 0:00:02]}  Bxa2 {[%clk 0:00:12]} 38. Kg3 {[%clk 0:00:01]}  h4+ {[%clk 0:00:10]} 39. Kf2 {[%clk 0:00:01]}  Bc4 {[%clk 0:00:10]} 40. Rc1 {[%clk 0:00:02]}  Ra2+ {[%clk 0:00:10]} 41. Kg1 {[%clk 0:00:01]}  f5 {[%clk 0:00:09]} 42. Rdd1 {[%clk 0:00:01]}  Kf4 {[%clk 0:00:08]} 43. Re1 {[%clk 0:00:01]}  Rd2 {[%clk 0:00:03]} 44. exf5 {[%clk 0:00:02]}  g5 {[%clk 0:00:03]} 45. Rcd1 {[%clk 0:00:02]}  Rc2 {[%clk 0:00:02]} 46. f6 {[%clk 0:00:02]}  Kxf3 {[%clk 0:00:02]} 47. f7 {[%clk 0:00:01]}  Rg2+ {[%clk 0:00:01]} 48. Kh1 {[%clk 0:00:01]}  Bxf7 {[%clk 0:00:02]} 49. Rf1+ {[%clk 0:00:02]}  Rf2 {[%clk 0:00:01]} 50. Kg1 {[%clk 0:00:03]} 1-0


[Site "https://www.chess.com"]

[Event "Titled Tuesday Blitz August 09 Early 2022"]
[White "Samunenkov, Ihor"]
[Black "Toncheva, Nadya"]
[WhiteFideId "14187086"]
[BlackFideId "2924056"]
[WhiteElo "2441"]
[BlackElo "1888"]
[Result "1-0"]
[Round "05"]
[TimeControl "180+1"]
[Date "2022.08.09"]
[WhiteClock "0:01:04"]
[BlackClock "0:00:53"]

1. e4 {[%clk 0:03:00]}  c5 {[%clk 0:03:00]} 2. Nf3 {[%clk 0:02:59]}  e6 {[%clk 0:03:00]} 3. d4 {[%clk 0:02:56]}  cxd4 {[%clk 0:03:01]} 4. Nxd4 {[%clk 0:02:57]}  Nc6 {[%clk 0:03:01]} 5. Nc3 {[%clk 0:02:57]}  Qc7 {[%clk 0:03:02]} 6. Qd3 {[%clk 0:02:57]}  Nxd4 {[%clk 0:03:00]} 7. Qxd4 {[%clk 0:02:57]}  a6 {[%clk 0:02:57]} 8. Be3 {[%clk 0:02:56]}  b5 {[%clk 0:02:44]} 9. O-O-O {[%clk 0:02:44]}  Bb7 {[%clk 0:02:42]} 10. Kb1 {[%clk 0:02:23]}  Nf6 {[%clk 0:02:41]} 11. f3 {[%clk 0:01:33]}  Be7 {[%clk 0:02:36]} 12. Be2 {[%clk 0:01:18]}  O-O {[%clk 0:02:35]} 13. g4 {[%clk 0:01:16]}  Rac8 {[%clk 0:01:37]} 14. g5 {[%clk 0:01:10]}  b4 {[%clk 0:01:29]} 15. gxf6 {[%clk 0:01:06]}  Bxf6 {[%clk 0:01:26]} 16. Qxb4 {[%clk 0:01:06]}  Bxc3 {[%clk 0:01:09]} 17. Qxc3 {[%clk 0:01:05]}  Qb8 {[%clk 0:00:53]} 18. Qb3 {[%clk 0:01:04]} 1-0


[Site "https://www.chess.com"]

[Event "Titled Tuesday Blitz August 09 Early 2022"]
[White "Shohat, Yotam"]
[Black "Goldin, Roman"]
[WhiteFideId "2813955"]
[BlackFideId "2803860"]
[WhiteElo "2119"]
[BlackElo "2312"]
[Result "1-0"]
[Round "05"]
[TimeControl "180+1"]
[Date "2022.08.09"]
[WhiteClock "0:00:02"]
[BlackClock "0:00:02"]

1. e4 {[%clk 0:03:00]}  Nc6 {[%clk 0:02:55]} 2. Nf3 {[%clk 0:02:59]}  e5 {[%clk 0:02:54]} 3. Bb5 {[%clk 0:02:56]}  a6 {[%clk 0:02:51]} 4. Ba4 {[%clk 0:02:55]}  Nf6 {[%clk 0:02:46]} 5. O-O {[%clk 0:02:54]}  Be7 {[%clk 0:02:47]} 6. Re1 {[%clk 0:02:48]}  d6 {[%clk 0:02:46]} 7. Bxc6+ {[%clk 0:02:26]}  bxc6 {[%clk 0:02:44]} 8. d4 {[%clk 0:02:27]}  exd4 {[%clk 0:02:29]} 9. Nxd4 {[%clk 0:02:28]}  Bd7 {[%clk 0:02:27]} 10. Nc3 {[%clk 0:01:55]}  O-O {[%clk 0:02:27]} 11. h3 {[%clk 0:01:39]}  Re8 {[%clk 0:02:27]} 12. Bf4 {[%clk 0:01:32]}  c5 {[%clk 0:02:21]} 13. Nb3 {[%clk 0:01:31]}  c4 {[%clk 0:01:56]} 14. Na5 {[%clk 0:01:28]}  Be6 {[%clk 0:01:42]} 15. Nd5 {[%clk 0:01:17]}  Nxd5 {[%clk 0:01:31]} 16. exd5 {[%clk 0:01:17]}  Bf5 {[%clk 0:01:32]} 17. Nxc4 {[%clk 0:00:51]}  Qd7 {[%clk 0:01:23]} 18. Qd2 {[%clk 0:00:38]}  Bf6 {[%clk 0:01:18]} 19. Rxe8+ {[%clk 0:00:36]}  Rxe8 {[%clk 0:01:16]} 20. Re1 {[%clk 0:00:37]}  Rxe1+ {[%clk 0:01:11]} 21. Qxe1 {[%clk 0:00:38]}  Bxc2 {[%clk 0:01:10]} 22. b3 {[%clk 0:00:27]}  h6 {[%clk 0:00:58]} 23. Qa5 {[%clk 0:00:20]}  Qf5 {[%clk 0:00:43]} 24. Be3 {[%clk 0:00:15]}  Be4 {[%clk 0:00:31]} 25. Qxc7 {[%clk 0:00:14]}  Qg6 {[%clk 0:00:31]} 26. Qc8+ {[%clk 0:00:09]}  Kh7 {[%clk 0:00:30]} 27. Qg4 {[%clk 0:00:10]}  Bxd5 {[%clk 0:00:12]} 28. Qxg6+ {[%clk 0:00:09]}  Kxg6 {[%clk 0:00:12]} 29. Nxd6 {[%clk 0:00:10]}  Be5 {[%clk 0:00:08]} 30. Nc4 {[%clk 0:00:10]}  Kf5 {[%clk 0:00:06]} 31. f3 {[%clk 0:00:07]}  Ke6 {[%clk 0:00:03]} 32. Kf2 {[%clk 0:00:07]}  Bf6 {[%clk 0:00:02]} 33. Ke2 {[%clk 0:00:06]}  h5 {[%clk 0:00:03]} 34. Kd3 {[%clk 0:00:03]}  h4 {[%clk 0:00:03]} 35. Bd4 {[%clk 0:00:04]}  Bxd4 {[%clk 0:00:02]} 36. Kxd4 {[%clk 0:00:04]}  Ba8 {[%clk 0:00:02]} 37. Ne3 {[%clk 0:00:03]}  Kf6 {[%clk 0:00:02]} 38. f4 {[%clk 0:00:02]}  g5 {[%clk 0:00:01]} 39. fxg5+ {[%clk 0:00:02]}  Kxg5 {[%clk 0:00:02]} 40. Ke5 {[%clk 0:00:03]}  f6+ {[%clk 0:00:01]} 41. Ke6 {[%clk 0:00:03]}  Kf4 {[%clk 0:00:02]} 42. Nf5 {[%clk 0:00:02]} 1-0


[Site "https://www.chess.com"]

[Event "Titled Tuesday Blitz August 09 Early 2022"]
[White "Siva Mahadevan"]
[Black "Hosseinzadeh, Nima"]
[WhiteFideId "25043153"]
[BlackFideId "12505323"]
[WhiteElo "2203"]
[BlackElo "2045"]
[Result "1-0"]
[Round "05"]
[TimeControl "180+1"]
[Date "2022.08.09"]
[WhiteClock "0:00:24"]
[BlackClock "0:00:01"]

1. e4 {[%clk 0:03:00]}  e5 {[%clk 0:02:54]} 2. Nf3 {[%clk 0:03:00]}  Nc6 {[%clk 0:02:54]} 3. Bb5 {[%clk 0:03:00]}  a6 {[%clk 0:02:54]} 4. Ba4 {[%clk 0:03:00]}  Nf6 {[%clk 0:02:52]} 5. O-O {[%clk 0:03:00]}  Nxe4 {[%clk 0:02:37]} 6. d4 {[%clk 0:02:59]}  b5 {[%clk 0:02:13]} 7. Bb3 {[%clk 0:02:59]}  d5 {[%clk 0:02:13]} 8. dxe5 {[%clk 0:03:00]}  Be6 {[%clk 0:02:13]} 9. Nbd2 {[%clk 0:03:00]}  Nc5 {[%clk 0:01:35]} 10. c3 {[%clk 0:03:00]}  d4 {[%clk 0:00:49]} 11. Bxe6 {[%clk 0:02:57]}  Nxe6 {[%clk 0:00:50]} 12. cxd4 {[%clk 0:02:56]}  Ncxd4 {[%clk 0:00:49]} 13. a4 {[%clk 0:02:57]}  Bb4 {[%clk 0:00:48]} 14. axb5 {[%clk 0:02:55]}  Nxb5 {[%clk 0:00:48]} 15. Qa4 {[%clk 0:02:41]}  c5 {[%clk 0:00:37]} 16. Ne4 {[%clk 0:02:35]}  O-O {[%clk 0:00:25]} 17. Be3 {[%clk 0:02:35]}  Qd5 {[%clk 0:00:23]} 18. Ng3 {[%clk 0:02:33]}  Nbd4 {[%clk 0:00:23]} 19. Bxd4 {[%clk 0:02:30]}  Nxd4 {[%clk 0:00:23]} 20. Nxd4 {[%clk 0:01:32]}  Qxd4 {[%clk 0:00:24]} 21. e6 {[%clk 0:01:32]}  fxe6 {[%clk 0:00:23]} 22. Qc6 {[%clk 0:01:33]}  Qxb2 {[%clk 0:00:14]} 23. Qxe6+ {[%clk 0:01:30]}  Kh8 {[%clk 0:00:14]} 24. Rxa6 {[%clk 0:01:30]}  Rae8 {[%clk 0:00:13]} 25. Qg4 {[%clk 0:01:09]}  Re1 {[%clk 0:00:12]} 26. Qf3 {[%clk 0:00:55]}  c4 {[%clk 0:00:10]} 27. Ra8 {[%clk 0:00:52]}  Ree8 {[%clk 0:00:03]} 28. Rxe8 {[%clk 0:00:39]}  Rxe8 {[%clk 0:00:04]} 29. Qc6 {[%clk 0:00:40]}  Rf8 {[%clk 0:00:02]} 30. Qxc4 {[%clk 0:00:38]}  Ba5 {[%clk 0:00:03]} 31. Ne4 {[%clk 0:00:33]}  Bb6 {[%clk 0:00:02]} 32. h3 {[%clk 0:00:32]}  Qd4 {[%clk 0:00:03]} 33. Qc6 {[%clk 0:00:31]}  h6 {[%clk 0:00:02]} 34. Kh1 {[%clk 0:00:29]}  Rd8 {[%clk 0:00:01]} 35. Rb1 {[%clk 0:00:24]}  Ba7 {[%clk 0:00:01]} 36. Rb7 {[%clk 0:00:21]}  Bb8 {[%clk 0:00:02]} 37. g3 {[%clk 0:00:21]}  Rf8 {[%clk 0:00:01]} 38. Qg6 {[%clk 0:00:21]}  Qe5 {[%clk 0:00:01]} 39. Kg2 {[%clk 0:00:20]}  Qd4 {[%clk 0:00:01]} 40. h4 {[%clk 0:00:18]}  Qe5 {[%clk 0:00:02]} 41. h5 {[%clk 0:00:18]}  Qd4 {[%clk 0:00:02]} 42. Qe6 {[%clk 0:00:19]}  Qe5 {[%clk 0:00:01]} 43. Qxe5 {[%clk 0:00:19]}  Bxe5 {[%clk 0:00:02]} 44. f4 {[%clk 0:00:19]}  Bf6 {[%clk 0:00:03]} 45. Kf3 {[%clk 0:00:20]}  Bd4 {[%clk 0:00:03]} 46. g4 {[%clk 0:00:20]}  Bf6 {[%clk 0:00:04]} 47. Nd6 {[%clk 0:00:21]}  Be5 {[%clk 0:00:03]} 48. Nf7+ {[%clk 0:00:21]}  Rxf7 {[%clk 0:00:04]} 49. Rxf7 {[%clk 0:00:22]}  Bf6 {[%clk 0:00:05]} 50. Ke4 {[%clk 0:00:22]}  Kg8 {[%clk 0:00:05]} 51. Rd7 {[%clk 0:00:22]}  Bh4 {[%clk 0:00:04]} 52. Kf5 {[%clk 0:00:23]}  Be1 {[%clk 0:00:04]} 53. Kg6 {[%clk 0:00:23]}  Kf8 {[%clk 0:00:02]} 54. Rf7+ {[%clk 0:00:23]}  Ke8 {[%clk 0:00:02]} 55. Rxg7 {[%clk 0:00:24]}  Bc3 {[%clk 0:00:01]} 56. Kxh6 {[%clk 0:00:24]} 1-0


[Site "https://www.chess.com"]

[Event "Titled Tuesday Blitz August 09 Early 2022"]
[White "Slugin, Sergey"]
[Black "Vakhlamov, Igor L."]
[WhiteFideId "4122569"]
[BlackFideId "24126748"]
[WhiteElo "2330"]
[BlackElo "2401"]
[Result "1-0"]
[Round "05"]
[TimeControl "180+1"]
[Date "2022.08.09"]
[WhiteClock "0:00:15"]
[BlackClock "0:00:03"]

1. c4 {[%clk 0:03:00]}  Nf6 {[%clk 0:02:59]} 2. Nc3 {[%clk 0:03:01]}  c5 {[%clk 0:02:58]} 3. Nf3 {[%clk 0:03:00]}  Nc6 {[%clk 0:02:59]} 4. e3 {[%clk 0:02:59]}  e6 {[%clk 0:02:59]} 5. a3 {[%clk 0:02:57]}  d5 {[%clk 0:02:57]} 6. d4 {[%clk 0:02:57]}  dxc4 {[%clk 0:02:56]} 7. Bxc4 {[%clk 0:02:57]}  a6 {[%clk 0:02:56]} 8. O-O {[%clk 0:02:53]}  b5 {[%clk 0:02:56]} 9. Ba2 {[%clk 0:02:54]}  Bb7 {[%clk 0:02:56]} 10. dxc5 {[%clk 0:02:34]}  Bxc5 {[%clk 0:02:54]} 11. b4 {[%clk 0:02:34]}  Bd6 {[%clk 0:02:54]} 12. Bb2 {[%clk 0:02:33]}  Ne5 {[%clk 0:02:53]} 13. Nxe5 {[%clk 0:02:18]}  Bxe5 {[%clk 0:02:54]} 14. a4 {[%clk 0:02:15]}  O-O {[%clk 0:02:47]} 15. Qe2 {[%clk 0:02:03]}  Qc7 {[%clk 0:01:37]} 16. Rfc1 {[%clk 0:02:02]}  Bxh2+ {[%clk 0:01:37]} 17. Kh1 {[%clk 0:02:03]}  Qb8 {[%clk 0:01:09]} 18. axb5 {[%clk 0:02:00]}  axb5 {[%clk 0:01:10]} 19. Nxb5 {[%clk 0:01:59]}  Be5 {[%clk 0:01:08]} 20. Nd4 {[%clk 0:01:36]}  Ne4 {[%clk 0:01:08]} 21. Bb1 {[%clk 0:01:23]}  Rxa1 {[%clk 0:01:04]} 22. Bxa1 {[%clk 0:01:24]}  Bf6 {[%clk 0:00:58]} 23. Kg1 {[%clk 0:01:12]}  h6 {[%clk 0:00:55]} 24. b5 {[%clk 0:01:08]}  Bd5 {[%clk 0:00:28]} 25. Bd3 {[%clk 0:00:58]}  Rd8 {[%clk 0:00:24]} 26. Qc2 {[%clk 0:00:54]}  Bxd4 {[%clk 0:00:18]} 27. Bxd4 {[%clk 0:00:50]}  Qb7 {[%clk 0:00:16]} 28. Qc7 {[%clk 0:00:47]}  Rb8 {[%clk 0:00:08]} 29. Qxb7 {[%clk 0:00:43]}  Bxb7 {[%clk 0:00:09]} 30. Rc7 {[%clk 0:00:41]}  Bd5 {[%clk 0:00:05]} 31. b6 {[%clk 0:00:38]}  Nd6 {[%clk 0:00:03]} 32. Be5 {[%clk 0:00:32]}  Ne8 {[%clk 0:00:03]} 33. Re7 {[%clk 0:00:22]}  Rd8 {[%clk 0:00:02]} 34. Bb5 {[%clk 0:00:18]}  Nf6 {[%clk 0:00:01]} 35. b7 {[%clk 0:00:15]}  Rb8 {[%clk 0:00:01]} 36. Bxb8 {[%clk 0:00:14]}  Kf8 {[%clk 0:00:02]} 37. Bd6 {[%clk 0:00:13]}  Kg8 {[%clk 0:00:02]} 38. b8=Q+ {[%clk 0:00:14]}  Kh7 {[%clk 0:00:02]} 39. Bd3+ {[%clk 0:00:14]}  g6 {[%clk 0:00:03]} 40. Rxf7# {[%clk 0:00:15]} 1-0


[Site "https://www.chess.com"]